bitfinex-derivatives/quotes_ETHF0:USTF0_20260203
["timestamp","ask_amount","ask_price","bid_price","bid_amount"]
[1770162356612,2.09536609,2233.8,2232.5,2.54541202]
[1770162356817,2.627,2233.7,2232.5,2.54541202]
[1770162358112,2.85117,2233.7,2232.5,2.54541202]
[1770162359515,2.09536609,2234.1,2232.5,2.54541202]
[1770162359713,4.866,2234.0,2232.5,2.54541202]
[1770162360120,0.22415,2233.9,2232.5,2.54541202]
[1770162360322,2.37954227,2231.7,2227.8,9.54351925]
[1770162360516,2.09536609,2228.1,2225.7,6.52231947]
[1770162360716,4.867,2228.0,2227.3,36.28159426]
[1770162360918,2.09536609,2228.1,2225.5,2.24]
[1770162360919,2.09536609,2228.1,2225.5,4.33536609]
[1770162361122,5.2136906,2227.4,2225.6,53.76860937]
[1770162361322,2.60789416,2227.1,2225.6,53.77238598]
[1770162361521,2.60789416,2226.7,2225.7,6.67477221]
[1770162361719,2.60789416,2226.7,2225.7,5.288247]
[1770162361720,2.60789416,2226.5,2225.7,5.288247]
[1770162361919,2.60789416,2226.3,2225.8,91.41597823]
[1770162362118,39.11858864,2225.9,2224.5,2.887]
[1770162362314,6.6546035,2225.8,2224.7,2.54541202]
[1770162362617,6.6546035,2225.7,2224.7,2.54541202]
[1770162362826,9.24519676,2225.6,2224.8,48.48036237]
[1770162363019,9.24519676,2225.5,2224.4,51.02577439]
[1770162363214,6.6546035,2225.4,2224.5,2.54541202]
[1770162363420,4.347,2225.8,2225.3,2.54541202]
[1770162363719,6.589,2226.0,2224.8,2.54541202]
[1770162363918,6.74860425,2225.9,2225.0,42.93561586]
[1770162364120,4.352,2225.8,2225.1,2.54541202]
[1770162364323,0.00386942,2225.8,2224.7,2.54541202]
[1770162364524,0.00386942,2225.8,2224.8,2.54541202]
[1770162364725,6.75022396,2225.7,2224.6,48.47458827]
[1770162365020,2.82380997,2224.7,2223.3,2.54541202]
[1770162365320,3.918,2224.6,2223.3,2.54541202]
[1770162365524,2.59059326,2225.6,2223.6,2.54541202]
[1770162365725,2.59059326,2225.6,2224.1,2.54541202]
[1770162365726,4.372,2225.6,2224.1,2.54541202]
[1770162365929,4.372,2225.6,2224.4,2.54541202]
[1770162366120,4.372,2225.6,2224.5,38.01024029]
[1770162366418,4.372,2225.6,2224.4,0.00411151]
[1770162366617,0.07824031,2225.4,2224.4,35.46893978]
[1770162366816,6.623,2225.3,2224.4,0.00411151]
[1770162367020,2.82380997,2225.2,2223.6,2.54541202]
[1770162367218,2.82380997,2225.2,2221.9,2.243]
[1770162367219,0.22507,2224.5,2222.7,2.54541202]
[1770162367526,3.474,2224.4,2223.2,2.54541202]
[1770162367826,2.82380997,2224.7,2222.9,2.54541202]
[1770162368326,2.244,2224.7,2223.5,2.54541202]
[1770162368521,2.244,2224.7,2222.7,0.0033723]
[1770162368522,9.67886997,2224.6,2222.8,25.44024029]
[1770162368727,0.2251,2224.2,2222.8,22.89482827]
[1770162368921,7.21680997,2224.1,2222.7,0.0033723]
[1770162369127,0.22514,2223.9,2222.1,2.54541202]
[1770162369420,2.82380997,2222.6,2220.9,2.54541202]
[1770162369731,4.878,2222.5,2220.4,2.54541202]
[1770162369925,4.878,2222.4,2220.4,2.54541202]
[1770162370120,0.004635,2222.4,2220.6,2.54541202]
[1770162370422,6.288,2222.3,2220.6,2.54541202]
[1770162370725,3.04913997,2222.0,2220.2,2.76737658]
[1770162370925,4.415,2221.9,2220.6,2.54541202]
[1770162371221,2.246,2223.0,2221.4,2.54541202]
[1770162371427,3.071,2222.9,2221.4,2.54541202]
[1770162371624,2.82380997,2223.5,2221.5,10.92282827]
[1770162371625,0.22518,2223.4,2221.5,10.92282827]
[1770162371824,0.07833648,2222.7,2221.5,2.54541202]
[1770162372019,4.882,2222.7,2221.6,13.46824029]
[1770162372217,0.22518,2223.4,2221.6,2.54541202]
[1770162372418,0.0818627,2222.7,2221.7,10.92282827]
[1770162372723,0.00352658,2222.7,2221.7,13.46824029]
[1770162372921,0.22514,2223.8,2222.1,2.54541202]
[1770162373122,6.31815,2223.7,2222.1,2.54541202]
[1770162373322,2.82380997,2223.4,2222.2,10.92282827]
[1770162373523,2.247,2223.3,2222.2,10.92282827]
[1770162374028,2.25184874,2223.3,2222.2,10.92282827]
[1770162374224,0.2252,2223.2,2221.7,2.54541202]
[1770162374428,0.00484874,2223.3,2221.9,2.54541202]
[1770162374626,4.885,2223.2,2222.0,2.54541202]
[1770162374920,2.248,2223.8,2222.8,2.54541202]
[1770162375126,2.248,2223.8,2222.9,10.92282827]
[1770162375527,2.248,2223.8,2221.7,2.248]
[1770162375528,2.248,2223.8,2222.4,2.54541202]
[1770162375829,6.89215,2223.7,2222.4,2.54541202]
[1770162376128,6.89671168,2223.7,2222.4,13.46824029]
[1770162376327,6.666,2223.6,2222.4,10.92282827]
[1770162376626,0.22521,2223.2,2221.6,2.5504801]
[1770162376827,4.358,2223.1,2221.9,2.54541202]
[1770162377321,4.36358751,2223.1,2222.0,10.92282827]
[1770162377723,4.36358751,2223.1,2222.0,53.85844413]
[1770162378030,0.22522,2223.0,2222.0,10.92282827]
[1770162378428,0.22527,2222.6,2221.6,0.00506808]
[1770162378726,0.22527,2222.6,2221.7,10.92282827]
[1770162379125,2.82380997,2223.0,2221.7,10.92282827]
[1770162379321,0.00558751,2223.1,2221.7,10.92282827]
[1770162379322,0.00558751,2223.1,2222.1,2.54541202]
[1770162379527,0.00558751,2223.1,2222.3,2.54541202]
[1770162379931,0.00558751,2223.1,2222.5,42.93561586]
[1770162380226,6.664,2223.6,2222.8,42.93561586]
[1770162380427,0.07831691,2223.1,2222.1,42.48412586]
[1770162380620,6.664,2223.6,2222.2,55.95937181]
[1770162380828,6.664,2223.6,2222.2,2.55241768]
[1770162381131,6.66755359,2223.6,2221.7,2.55241768]
[1770162381330,0.22522,2223.0,2221.9,2.55241768]
[1770162381533,0.22522,2223.0,2222.0,10.92282827]
[1770162382230,0.22523,2222.9,2222.0,10.92282827]
[1770162382731,0.22525,2222.7,2222.1,10.92282827]
[1770162382922,6.73832766,2223.2,2222.1,55.95937181]
[1770162383632,6.73832766,2223.2,2222.2,42.48412586]
[1770162383830,6.96354766,2223.2,2222.3,10.92282827]
[1770162384025,0.22523,2223.1,2222.3,10.92282827]
[1770162384427,6.75841728,2223.0,2222.3,53.40695413]
[1770162384629,0.22523,2223.1,2222.3,53.40695413]
[1770162384933,6.758581,2223.0,2222.3,53.40695413]
[1770162385131,6.75858054,2222.9,2222.3,53.40695413]
[1770162385327,6.75858054,2222.8,2222.6,42.48412586]
[1770162385531,2.53758156,2223.1,2222.7,2.50240777]
[1770162385830,4.425,2224.5,2222.9,2.72765777]
[1770162386229,6.31164819,2224.3,2223.1,2.50240777]
[1770162386534,0.22509,2224.6,2223.1,2.72763777]
[1770162386738,0.22878776,2224.6,2223.3,2.50240777]
[1770162386935,2.72831421,2224.5,2223.3,2.50635312]
[1770162387234,0.00369776,2224.6,2223.3,2.50635312]
[1770162387235,0.22514,2224.1,2223.4,10.91927468]
[1770162387630,2.50321421,2224.0,2223.4,10.91927468]
[1770162388031,2.50321421,2223.9,2223.4,10.91927468]
[1770162388229,6.31164819,2223.8,2223.0,2.50240777]
[1770162389128,6.55362687,2223.4,2222.8,0.078]
[1770162389333,7.76722512,2223.8,2222.8,0.08259575]
[1770162389629,7.76722512,2224.1,2222.8,0.08259575]
[1770162389932,7.76722512,2224.1,2222.8,0.30785575]
[1770162390132,2.5669474,2224.0,2222.8,0.08259575]
[1770162390330,2.3418074,2223.8,2222.8,0.08259575]
[1770162390633,0.00890331,2222.8,2222.3,3.067]
[1770162390833,0.22519,2223.6,2222.3,3.067]
[1770162391234,0.22519,2223.6,2222.5,2.50240777]
[1770162391533,2.34579342,2223.6,2222.5,2.50667169]
[1770162391834,7.76722512,2223.6,2222.5,0.00426392]
[1770162392034,9.48369403,2223.9,2222.5,2.50667169]
[1770162392234,0.22522,2223.3,2222.5,2.50667169]
[1770162392734,0.00460713,2223.3,2222.5,0.00426392]
[1770162392934,0.22524,2223.1,2222.5,0.00426392]
[1770162393137,0.22528,2222.7,2221.8,2.50240777]
[1770162394031,0.22528,2222.7,2221.8,2.50591372]
[1770162394336,0.22528,2222.7,2221.2,0.22542]
[1770162394537,0.22528,2222.7,2221.3,0.22541]
[1770162395434,0.22528,2222.7,2221.3,0.22879949]
[1770162396036,0.22531,2222.3,2221.3,0.00338949]
[1770162396332,2.5671374,2222.2,2221.3,0.00338949]
[1770162396631,2.3418074,2222.2,2219.6,2.50240777]
[1770162396832,2.3418074,2221.3,2219.8,2.50240777]
[1770162397035,2.3418074,2221.3,2220.0,2.50240777]
[1770162397435,0.2254,2221.5,2220.2,2.50240777]
[1770162397630,5.41190331,2221.4,2220.2,2.5071986]
[1770162397830,5.41190331,2221.3,2220.2,2.5071986]
[1770162398031,5.41190331,2221.2,2220.2,2.5071986]
[1770162398241,2.3418074,2221.0,2219.6,2.72799777]
[1770162398439,7.75371071,2220.9,2219.6,2.72799777]
[1770162398638,2.5672874,2220.7,2219.6,2.50240777]
[1770162398840,7.75371071,2220.6,2219.6,2.50240777]
[1770162399041,5.41190331,2220.5,2219.6,2.50240777]
[1770162399340,1.89517303,2220.4,2219.6,2.50633508]
[1770162399539,2.55241767,2220.7,2219.6,2.50633508]
[1770162399732,2.55241767,2220.7,2219.6,0.00392731]
[1770162400137,2.55241767,2220.7,2218.2,1.1867856]
[1770162400138,2.77795768,2220.1,2218.2,0.22572]
[1770162400338,2.55241768,2220.0,2218.4,0.22571]
[1770162400546,2.55241768,2219.8,2218.1,0.22574]
[1770162400842,2.55241768,2219.8,2218.0,2.641]
[1770162401141,2.55241768,2219.7,2218.3,0.22572]
[1770162401537,0.00522717,2219.8,2218.4,3.03561039]
[1770162401736,2.55241768,2220.4,2219.1,0.22563]
[1770162401943,2.55241768,2220.4,2219.2,0.22563]
[1770162402138,2.55241768,2220.4,2218.8,2.252]
[1770162402343,2.55241768,2220.4,2218.8,2.47767]
[1770162402637,2.55241768,2220.3,2218.8,2.47767]
[1770162403237,2.77793768,2220.3,2218.8,2.47767]
[1770162403434,2.77793768,2220.3,2218.3,2.86672]
[1770162403837,2.55241768,2220.1,2218.3,2.86672]
[1770162404036,2.77795768,2220.1,2218.3,2.86672]
[1770162404642,2.55241768,2220.1,2218.8,0.22566]
[1770162405341,2.55241768,2220.1,2218.9,0.22566]
[1770162405545,2.55241768,2220.1,2218.5,0.2257]
[1770162405842,2.55241768,2220.1,2218.3,2.641]
[1770162406347,2.55241768,2220.1,2218.8,0.22567]
[1770162406646,0.00361624,2220.4,2218.8,2.253]
[1770162407141,2.55241768,2221.2,2220.1,0.22554]
[1770162407343,2.55241768,2222.0,2219.9,2.253]
[1770162407642,2.55241768,2222.0,2220.0,4.896]
[1770162407838,2.55241768,2222.0,2220.6,0.22548]
[1770162408237,2.55241768,2221.8,2220.6,0.00497358]
[1770162408437,2.55241768,2221.4,2220.1,0.22554]
[1770162408638,2.55241768,2221.4,2219.7,4.896]
[1770162408947,2.55767542,2222.0,2220.2,2.63993547]
[1770162409143,2.55767542,2222.0,2220.5,0.2255]
[1770162409338,2.55767542,2222.0,2220.7,0.22547]
[1770162409543,0.00525774,2222.0,2221.1,0.22543]
[1770162409741,2.55241768,2222.6,2220.8,0.06084061]
[1770162409944,2.55241768,2222.6,2220.6,4.896]
[1770162409945,2.55241768,2223.0,2221.2,2.45748848]
[1770162410443,2.55241768,2223.0,2221.5,0.22539]
[1770162410644,2.55241768,2223.0,2221.5,2.47839]
[1770162410947,2.55479372,2223.0,2221.7,0.22537]
[1770162411147,0.00329299,2223.0,2221.8,0.22536]
[1770162411341,0.00329299,2223.0,2221.9,0.22535]
[1770162412042,0.00329299,2223.0,2222.1,0.22533]
[1770162412243,0.00329299,2223.0,2222.1,0.23001402]
[1770162412747,0.00329299,2223.0,2222.1,0.00468402]
[1770162412940,2.55150073,2223.7,2222.1,0.00468402]
[1770162413146,2.55150073,2223.7,2222.4,0.2253]
[1770162413346,2.55150073,2223.7,2222.4,2.4773]
[1770162413847,2.55608028,2223.7,2222.4,2.4773]
[1770162414047,0.08531436,2223.4,2222.4,2.252]
[1770162414238,2.55150073,2223.4,2222.4,2.252]
[1770162414644,2.63681509,2223.4,2222.4,2.252]
[1770162415343,0.00457955,2223.7,2222.4,2.252]
[1770162415742,0.00457955,2223.7,2222.8,0.22526]
[1770162416146,2.55643315,2223.7,2222.4,4.894]
[1770162416338,2.55643315,2223.7,2222.4,5.1193]
[1770162417045,2.55643315,2223.7,2222.4,4.894]
[1770162417245,2.55643315,2223.7,2222.1,0.00468402]
[1770162417246,2.5518536,2223.5,2222.5,2.21460031]
[1770162417445,2.5518536,2223.5,2222.3,0.22531]
[1770162418042,2.5518536,2223.4,2222.3,0.22531]
[1770162418546,2.63716796,2223.2,2222.3,0.22531]
[1770162418747,2.5518536,2223.2,2222.3,0.22531]
[1770162418952,2.63716796,2223.2,2222.3,0.22531]
[1770162419843,0.00457955,2223.7,2222.1,0.00468402]
[1770162419844,2.5518536,2222.8,2222.1,0.00468402]
[1770162420352,2.5518536,2223.1,2222.1,0.00468402]
[1770162420543,0.08531436,2223.0,2222.1,0.00468402]
[1770162420748,0.08531436,2222.7,2221.4,2.251]
[1770162420948,2.5518536,2222.8,2221.7,0.22537]
[1770162421649,0.22522,2223.3,2221.4,2.251]
[1770162421650,2.5518536,2223.5,2221.8,2.37653797]
[1770162421948,2.5518536,2223.5,2222.4,0.2253]
[1770162422249,2.5518536,2222.9,2221.9,0.22535]
[1770162422646,0.08531436,2222.8,2221.9,0.22535]
[1770162422848,0.08531436,2222.7,2221.9,0.22535]
[1770162423049,2.5518536,2223.2,2221.9,0.22535]
[1770162423247,2.5518536,2223.2,2222.0,0.22534]
[1770162423745,2.63716796,2222.8,2222.0,0.22534]
[1770162423952,2.5518536,2222.8,2222.0,0.22534]
[1770162424151,0.08531436,2222.7,2222.0,0.22534]
[1770162424544,0.08531436,2222.6,2222.0,0.22534]
[1770162424749,0.08531436,2222.7,2222.0,0.22534]
[1770162425146,0.08531436,2222.4,2221.8,0.00507103]
[1770162425347,2.5518536,2222.6,2221.8,0.00507103]
[1770162425548,2.5518536,2222.5,2221.8,0.00507103]
[1770162425747,2.5518536,2222.8,2221.5,0.22539]
[1770162425950,2.5518536,2222.8,2221.7,0.22537]
[1770162426151,0.08531436,2222.7,2221.7,0.22537]
[1770162426350,2.63716796,2222.8,2221.7,0.22537]
[1770162426558,2.5518536,2222.8,2221.8,0.22536]
[1770162426854,2.5518536,2222.8,2221.8,0.22980579]
[1770162427057,2.63716796,2222.8,2221.8,0.22980579]
[1770162427254,2.5518536,2222.8,2222.1,0.22533]
[1770162427450,2.5518536,2223.6,2222.1,0.22533]
[1770162427655,2.5518536,2223.2,2222.1,0.22533]
[1770162427958,2.63716796,2223.6,2222.5,0.22529]
[1770162428161,2.5518536,2223.6,2222.5,0.22529]
[1770162428361,2.63716796,2223.3,2222.5,0.22529]
[1770162428560,2.5518536,2223.3,2222.5,0.22529]
[1770162429353,0.00457955,2223.7,2222.2,2.251]
[1770162429556,0.00457955,2223.7,2222.6,2.24495474]
[1770162429757,0.00457955,2223.7,2222.9,0.22525]
[1770162430155,2.5518536,2223.5,2222.3,0.22531]
[1770162430362,2.63716796,2223.2,2222.3,0.22531]
[1770162430660,2.5518536,2223.2,2222.3,0.22531]
[1770162431262,2.5518536,2223.5,2222.4,0.2253]
[1770162431857,2.5518536,2223.5,2222.7,0.22527]
[1770162432062,2.5518536,2223.5,2221.9,6.80491993]
[1770162432063,0.08531436,2223.3,2222.3,0.22531]
[1770162432260,2.5518536,2223.5,2222.3,0.22531]
[1770162432459,2.5518536,2223.5,2221.9,2.32591993]
[1770162432654,2.5518536,2223.2,2221.8,2.25544579]
[1770162432964,2.5518536,2223.2,2220.0,0.07830439]
[1770162432965,0.22519,2223.5,2220.2,8.55337909]
[1770162433159,0.22519,2223.5,2219.9,11.58735872]
[1770162433160,0.22537,2221.7,2219.0,26.91376606]
[1770162433467,39.49827314,2220.4,2219.1,3.99689487]
[1770162433760,46.3667126,2220.3,2219.1,3.99689487]
[1770162434067,39.49827314,2220.0,2217.6,2.44765765]
[1770162434366,39.49827314,2220.0,2217.3,4.891]
[1770162434367,39.49827314,2219.6,2218.3,2.44765765]
[1770162434560,4.61743946,2219.5,2218.4,3.99689487]
[1770162434758,4.61743946,2219.4,2218.4,4.0008914]
[1770162434959,4.61743946,2219.3,2218.4,4.0008914]
[1770162435167,4.61743946,2219.2,2218.4,4.0008914]
[1770162435366,4.61743946,2219.1,2218.4,4.0008914]
[1770162435665,42.05314361,2219.5,2218.4,4.0008914]
[1770162435865,0.00426074,2219.5,2218.6,2.44765765]
[1770162436170,0.00426074,2219.5,2218.6,15.95725768]
[1770162436364,0.00426074,2219.5,2218.7,17.5064949]
[1770162436661,8.87265244,2220.3,2218.4,0.00399653]
[1770162436662,25.98867311,2220.8,2219.2,2.44765765]
[1770162436863,2.55060973,2221.3,2219.3,2.252]
[1770162437162,7.47697974,2221.2,2219.3,2.252]
[1770162437466,2.55060973,2221.2,2219.4,4.45274848]
[1770162437761,2.55544822,2221.2,2219.4,4.45274848]
[1770162438461,0.00483849,2221.2,2219.4,4.45274848]
[1770162438770,2.55060973,2222.1,2219.7,2.44765765]
[1770162439069,4.89053212,2222.0,2220.4,2.67315765]
[1770162439365,2.55060973,2222.1,2220.5,2.44765765]
[1770162439558,7.441326,2222.0,2220.6,2.44765765]
[1770162439764,2.55060973,2221.8,2220.6,2.45281861]
[1770162439958,2.55060973,2221.8,2220.7,3.99689487]
[1770162441565,2.35548938,2221.6,2220.6,0.00516096]
[1770162441769,2.35548938,2221.4,2220.6,4.00205583]
[1770162442269,2.35548938,2221.8,2220.6,4.00205583]
[1770162442468,4.88963257,2221.7,2220.6,4.00205583]
[1770162442669,2.35548938,2221.8,2220.7,3.99689487]
[1770162442870,4.88863028,2221.7,2220.7,3.99689487]
[1770162443070,2.35548938,2221.8,2220.7,3.99689487]
[1770162443272,4.8886318,2221.7,2220.7,3.99689487]
[1770162443467,2.35548938,2221.8,2220.7,3.99689487]
[1770162443665,2.35548938,2221.6,2220.7,3.99689487]
[1770162444674,2.35548938,2221.9,2220.7,3.99689487]
[1770162444874,4.88716648,2221.8,2220.7,6.52988717]
[1770162445070,4.88716648,2221.7,2220.7,6.52988717]
[1770162445270,7.24146955,2221.6,2220.7,3.99689487]
[1770162445472,2.35548938,2221.9,2220.7,6.52988717]
[1770162445673,4.88706638,2221.8,2220.7,6.52988717]
[1770162445973,2.35548938,2221.9,2220.7,6.52988717]
[1770162446180,7.24290343,2221.8,2220.7,6.52988717]
[1770162446376,4.88918718,2221.7,2220.7,6.52988717]
[1770162446577,2.35548938,2221.8,2220.7,6.52988717]
[1770162446777,7.24468197,2221.7,2220.7,6.52988717]
[1770162446977,2.35548938,2221.7,2220.7,6.52988717]
[1770162447173,2.62701162,2221.9,2220.8,2.5329923]
[1770162447478,7.24321043,2221.9,2220.8,2.5329923]
[1770162447677,7.24321043,2221.8,2220.8,2.5329923]
[1770162447973,4.88655771,2221.7,2220.8,2.5329923]
[1770162448177,2.35548938,2221.8,2220.8,2.5329923]
[1770162448574,4.88860194,2221.7,2220.9,3.99689487]
[1770162448774,2.35548938,2221.7,2220.9,3.99689487]
[1770162449777,2.62701162,2221.9,2220.9,3.99689487]
[1770162450074,4.89023181,2221.8,2220.9,3.99689487]
[1770162450273,4.89023181,2221.7,2220.9,3.99689487]
[1770162450577,2.62701162,2221.9,2220.9,3.99689487]
[1770162450876,4.89164492,2221.8,2220.9,3.99689487]
[1770162451076,4.89164492,2221.7,2220.9,3.99689487]
[1770162451277,2.62701162,2221.9,2220.9,3.99689487]
[1770162451580,4.89289931,2221.8,2220.9,3.99689487]
[1770162451776,0.0057438,2222.0,2221.0,2.5329923]
[1770162451976,0.0057438,2222.0,2221.2,2.5329923]
[1770162452678,0.0057438,2222.0,2221.4,2.5329923]
[1770162453079,0.0057438,2222.0,2221.6,2.5329923]
[1770162453481,0.0057438,2222.0,2221.7,3.99689487]
[1770162453691,2.62701162,2222.4,2221.7,6.52988717]
[1770162453888,4.982501,2222.6,2221.7,6.52988717]
[1770162454092,4.89738262,2222.5,2221.7,6.52988717]
[1770162454388,0.31843696,2219.9,2218.4,2.5329923]
[1770162454584,2.85238162,2221.8,2218.4,2.5329923]
[1770162454585,2.62701162,2220.0,2218.4,2.5329923]
[1770162454785,2.62701162,2220.7,2219.1,2.5329923]
[1770162454990,4.88339097,2220.6,2219.1,2.7586223]
[1770162455189,2.94544858,2220.8,2219.3,2.5329923]
[1770162455386,7.81078733,2220.7,2219.3,2.53816923]
[1770162455590,0.31843696,2220.5,2219.3,2.53816923]
[1770162455791,7.81078733,2220.4,2219.3,2.53816923]
[1770162455995,4.86533875,2220.3,2219.3,2.53816923]
[1770162456189,4.86533875,2220.2,2219.3,2.53816923]
[1770162456396,2.62701162,2220.4,2219.3,2.53816923]
[1770162456696,5.20160011,2220.3,2219.3,0.00517693]
[1770162456995,4.86146262,2220.2,2219.3,0.00517693]
[1770162457195,4.86146262,2220.1,2219.3,0.00517693]
[1770162457396,0.34013749,2220.3,2219.3,0.00517693]
[1770162457695,4.85922512,2220.2,2219.3,0.00517693]
[1770162457895,4.85922512,2220.1,2219.3,0.00517693]
[1770162458200,2.96714911,2220.3,2219.3,0.00517693]
[1770162458391,5.20290188,2220.2,2219.3,0.00517693]
[1770162458594,4.86210577,2220.1,2219.3,0.00517693]
[1770162458894,4.86210577,2220.0,2219.3,0.00517693]
[1770162459098,2.96780773,2220.2,2219.3,0.00517693]
[1770162459297,4.8648873,2220.1,2219.3,0.00517693]
[1770162459488,0.33561918,2219.3,2217.9,2.5329923]
[1770162459692,5.20050648,2219.2,2217.9,2.5329923]
[1770162459899,7.82165359,2219.1,2217.9,2.5329923]
[1770162460093,4.8648873,2219.0,2217.9,2.5329923]
[1770162460393,4.8648873,2218.9,2217.9,2.53700312]
[1770162460591,4.8648873,2218.8,2217.9,2.53700312]
[1770162460791,4.8648873,2218.7,2217.9,2.53700312]
[1770162460990,0.32975467,2218.4,2217.4,0.22581]
[1770162461191,4.86204226,2218.3,2217.3,2.5329923]
[1770162461798,2.62701162,2218.5,2217.3,2.5329923]
[1770162462099,4.86047496,2218.4,2217.3,2.53666777]
[1770162462298,4.86047496,2218.3,2217.3,2.53666777]
[1770162462495,2.98460562,2218.5,2217.3,2.53666777]
[1770162462792,7.48826857,2218.4,2217.3,2.53666777]
[1770162462992,0.357594,2218.2,2217.3,0.00367547]
[1770162463196,4.86041134,2218.2,2217.1,2.5329923]
[1770162463497,2.98460562,2218.4,2217.1,2.5329923]
[1770162463697,4.85467702,2218.3,2217.1,2.5329923]
[1770162463898,2.98460562,2218.4,2217.1,2.5329923]
[1770162464100,4.85469522,2218.3,2217.1,2.53843472]
[1770162464297,2.62701162,2218.6,2217.1,2.76427472]
[1770162464500,4.85200921,2218.5,2217.3,2.5329923]
[1770162464706,4.85218889,2218.4,2217.3,2.5329923]
[1770162465000,0.35881684,2218.5,2217.3,2.5329923]
[1770162465199,4.7859544,2218.4,2217.3,2.5329923]
[1770162465399,0.35881684,2218.5,2217.3,2.5329923]
[1770162465600,0.35881684,2218.3,2217.3,2.5329923]
[1770162466195,2.99701174,2218.7,2217.3,2.5329923]
[1770162466396,0.37000012,2218.7,2217.4,2.5329923]
[1770162466602,0.37000012,2218.7,2217.4,2.7588023]
[1770162467099,0.00377685,2219.0,2217.9,2.5329923]
[1770162467296,0.00377685,2219.0,2217.9,2.7587523]
[1770162468403,0.00377685,2219.0,2218.1,2.7587323]
[1770162468705,0.00377685,2219.0,2218.2,2.5329923]
[1770162470702,2.62701162,2219.7,2218.4,2.46231144]
[1770162470904,2.57695216,2219.9,2218.6,2.46231144]
[1770162471100,4.777016,2219.8,2218.6,2.46231144]
[1770162471302,0.32295216,2220.3,2218.8,2.46231144]
[1770162471498,2.94996378,2220.3,2218.8,2.46231144]
[1770162471704,4.77964677,2220.2,2218.8,2.46700623]
[1770162471907,4.77944129,2220.1,2218.8,2.46700623]
[1770162472102,0.32295216,2220.2,2218.8,2.46700623]
[1770162472401,4.7800419,2220.1,2218.8,2.46700623]
[1770162472705,0.32295216,2220.2,2218.8,2.46700623]
[1770162472899,4.7801706,2220.1,2218.9,2.46231144]
[1770162473207,0.32295216,2220.2,2218.9,2.46231144]
[1770162473401,0.32254391,2220.1,2218.9,2.46231144]
[1770162473802,2.63276955,2220.3,2218.9,2.46231144]
[1770162474004,39.32918029,2220.6,2219.8,2.46231144]
[1770162474306,0.32131772,2221.4,2220.0,2.46231144]
[1770162474805,0.32131772,2221.9,2220.2,2.68784144]
[1770162475006,0.32131772,2221.7,2220.2,2.68784144]
[1770162477809,4.59966831,2221.6,2220.2,2.68784144]
[1770162478106,0.32131772,2221.7,2220.2,2.68784144]
[1770162478301,4.59956316,2221.6,2220.2,2.68784144]
[1770162478608,0.32131772,2221.7,2220.2,2.68784144]
[1770162478810,4.6003777,2221.6,2220.2,2.68784144]
[1770162479009,0.32131772,2221.7,2220.2,2.68784144]
[1770162479210,4.60041362,2221.6,2220.2,2.68784144]
[1770162479409,0.32131772,2221.7,2220.2,2.68784144]
[1770162479605,0.2619836,2221.5,2220.2,2.46231144]
[1770162479914,0.2619836,2221.3,2220.2,2.46231144]
[1770162480204,0.00521949,2221.9,2220.2,2.46231144]
[1770162480205,0.27012648,2221.9,2220.2,2.68783144]
[1770162480411,4.60307819,2221.8,2220.2,2.68783144]
[1770162480712,4.60307819,2221.7,2220.2,2.68783144]
[1770162480915,0.26490699,2221.8,2220.2,2.68783144]
[1770162481204,4.60086503,2221.7,2220.2,2.68783144]
[1770162481409,0.26490699,2221.8,2220.4,2.47677123]
[1770162481609,4.60461309,2221.7,2220.4,2.48038822]
[1770162481804,0.26490699,2221.8,2220.4,2.48038822]
[1770162482005,4.60448568,2221.7,2220.4,2.48038822]
[1770162482208,0.26490699,2221.8,2220.4,2.48038822]
[1770162482405,0.00521949,2221.9,2221.1,2.47677123]
[1770162482612,0.00521949,2221.9,2221.3,2.47677123]
[1770162482808,0.00521949,2221.9,2220.5,0.33422949]
[1770162482809,0.00521949,2221.9,2220.7,2.47677123]
[1770162483007,0.26775455,2221.9,2220.7,2.47677123]
[1770162483206,0.26253506,2221.8,2220.4,2.25661699]
[1770162483402,0.26253506,2221.6,2220.4,4.73338822]
[1770162483608,0.26253506,2221.6,2220.5,2.47677123]
[1770162484004,0.26253506,2221.6,2220.4,2.25661699]
[1770162484209,4.61564099,2221.5,2220.4,4.73338822]
[1770162484409,4.61564099,2221.4,2220.4,4.73338822]
[1770162484714,0.26253506,2221.6,2220.4,4.73338822]
[1770162484911,4.62550617,2221.5,2220.4,4.73338822]
[1770162485110,0.00521949,2221.9,2220.5,2.47677123]
[1770162485311,0.00521949,2221.9,2220.9,2.70222123]
[1770162488108,0.00521949,2221.9,2221.1,2.70221123]
[1770162488310,5.70989815,2222.9,2221.3,2.70218123]
[1770162488508,4.62347092,2222.8,2221.4,2.47677123]
[1770162488712,4.62347092,2222.7,2221.4,2.47677123]
[1770162488914,4.62347092,2222.6,2221.4,2.47677123]
[1770162489115,0.22258132,2222.8,2221.4,2.47677123]
[1770162489417,4.62727876,2222.7,2221.4,2.47677123]
[1770162489616,0.22741956,2222.8,2221.4,2.47677123]
[1770162489916,4.62220631,2222.7,2221.4,2.47677123]
[1770162490110,0.22235938,2222.7,2221.4,2.47677123]
[1770162490315,0.22235938,2222.3,2221.1,2.47677123]
[1770162492012,0.25636795,2222.7,2221.3,2.47677123]
[1770162492214,0.00483824,2222.8,2221.3,2.70218123]
[1770162492511,0.00483824,2222.8,2221.6,2.47677123]
[1770162493215,0.25636795,2222.7,2221.6,2.47677123]
[1770162494416,3.07274971,2222.8,2221.6,2.47677123]
[1770162494614,0.25657927,2223.3,2222.0,2.47677123]
[1770162494815,0.25657927,2223.0,2222.0,2.47677123]
[1770162495013,0.25657927,2222.8,2221.5,2.47677123]
[1770162495619,0.26036208,2222.8,2221.5,2.48240931]
[1770162496017,0.00378281,2222.8,2221.5,2.48240931]
[1770162496318,0.00378281,2222.8,2221.7,2.47677123]
[1770162496718,0.00378281,2222.8,2221.9,2.47677123]
[1770162497015,5.26206683,2223.9,2222.7,0.22527]
[1770162497219,4.61111015,2223.8,2222.8,2.70203123]
[1770162497514,2.40188064,2224.8,2223.5,2.47677123]
[1770162497718,4.59827949,2224.7,2223.5,2.70196123]
[1770162498020,2.41669492,2225.4,2224.0,2.47677123]
[1770162498216,2.53251857,2224.9,2223.7,2.252]
[1770162498519,2.53251857,2224.7,2223.5,0.00383796]
[1770162498921,0.00378281,2224.5,2223.5,0.00383796]
[1770162499116,2.53703533,2224.7,2223.5,0.00383796]
[1770162499117,2.53251857,2224.4,2223.5,0.00383796]
[1770162499419,0.00451676,2224.7,2223.5,0.00383796]
[1770162499619,0.00451676,2224.7,2223.5,0.22900796]
[1770162499828,2.53251857,2225.5,2223.6,0.22516]
[1770162500123,7.09990522,2225.4,2223.6,0.22516]
[1770162500318,4.56738665,2225.3,2223.9,0.22512]
[1770162500519,2.53251857,2226.0,2224.5,2.40905531]
[1770162500821,2.53074085,2225.8,2224.5,2.40905531]